Cogmind - Beta 16 @@@ ROGUE MODE // 2025.10.27 @ 01:01:34 Player: kiul Result: Destroyed by G-47 Trooper with Particle Gun Performance ------------- Evolutions (3) 1500 Regions Visited (7) 1400 Robots Destroyed (64) 320 Value Destroyed (2333) 2333 Prototype IDs (1) 20 Alien Tech Used (0) 0 Bonus (664) 664 TOTAL SCORE: 6237 Bonus ------- Follower Combat Kills 176 Entered DSFs 500 Friendly Fire -12 Cogmind --------- Core Integrity 0/700 Matter 31/300 Energy 100/100 System Corruption 2% Temperature Cool (97) Movement Treading (280) Ox3 Location -7/DSF Parts ------- > --- POWER (1) -------- (None) > --- PROPULSION (4) --- Improved Treads > --- UTILITY (6) ------ Huge Storage Unit Improved Signal Interpreter > --- WEAPON (2) ------- Assault Cannon > --- INVENTORY (25) --- Light Nuclear Core Improved Deuterium Engine Improved Cooling System Medium Matter Pod (0) Improved Salvage Targeting Computer Matter Filter Particle Charger Light Armor Plating Light Armor Plating Improved Light Armor Plating Assault Cannon Peak State ------------ > --- POWER ------------ Improved Deuterium Engine > --- PROPULSION ------- Improved Treads Improved Treads Armored Treads Armored Treads > --- UTILITY ---------- Improved Heat Sink Huge Storage Unit Improved Signal Interpreter Improved Light Armor Plating Improved Medium Armor Plating Improved Shield Generator > --- WEAPON ----------- Pulse Rifle Assault Cannon > --- INVENTORY -------- Light Nuclear Core Improved Deuterium Engine Improved Deuterium Engine Improved Treads Improved Treads Improved Treads Improved Cooling System Medium Matter Pod Improved Salvage Targeting Computer Matter Filter Particle Charger Light Armor Plating Light Armor Plating Medium Armor Plating Improved Light Armor Plating Improved Light Armor Plating Field Recycling Unit Assault Cannon Assault Cannon Assault Cannon Rocket Launcher Rocket Launcher Mini Grenade Launcher [Rating: 44] Favorites ----------- Power Light Nuclear Core Engine Improved Ion Engine Power Core Light Nuclear Core Propulsion Improved Treads Treads Improved Treads Utility Huge Storage Unit Device Improved Heat Sink Storage Huge Storage Unit Processor Improved Signal Interpreter Protection Improved Light Armor Plating Weapon Heavy Assault Rifle Energy Gun Medium Laser Ballistic Gun Heavy Assault Rifle Ballistic Cannon Assault Cannon Launcher Mini Grenade Launcher Special Weapon Mining Laser Slashing Weapon Katana Build | -11 -10 -10 -9 -9 -8 -7 -7 ------- Run | Yrd Mat Min Mat Min Mat Fac DSF Slots Evolved 6 | . . . 2 . 2 2 . Power . | . . . . . . . . Propulsion 2 | . . . 1 . . 1 . Utility 4 | . . . 1 . 2 1 . Weapon . | . . . . . . . . Parts Attached 71 | 6 3 . 24 1 17 7 13 Power 9 | 1 . . 2 1 2 1 2 Engine 7 | 1 . . 1 1 1 1 2 Core 2 | . . . 1 . 1 . . Reactor . | . . . . . . . . Propulsion 17 | 2 . . 7 . 4 . 4 Treads 17 | 2 . . 7 . 4 . 4 Leg . | . . . . . . . . Wheel . | . . . . . . . . Hover . | . . . . . . . . Flight . | . . . . . . . . Utility 25 | 1 3 . 8 . 7 4 2 Device 8 | . 1 . 2 . 2 2 1 Storage 4 | 1 2 . 1 . . . . Processor 3 | . . . 1 . 1 1 . Hackware . | . . . . . . . . Protection 10 | . . . 4 . 4 1 1 Artifact . | . . . . . . . . Weapon 20 | 2 . . 7 . 4 2 5 Energy Gun 3 | 1 . . 1 . . 1 . Energy Cannon . | . . . . . . . . Ballistic Gun 7 | 1 . . 3 . 3 . . Ballistic Cannon 5 | . . . . . 1 1 3 Launcher 3 | . . . 1 . . . 2 Special Weapon 1 | . . . 1 . . . . Impact Weapon . | . . . . . . . . Slashing Weapon 1 | . . . 1 . . . . Piercing Weapon . | . . . . . . . . Special Melee Weapon . | . . . . . . . . Unidentified Prototypes 1 | . . . . . 1 . . Parts Lost 33 | . . . 5 1 6 . 21 Power 3 | . . . . 1 . . 2 Propulsion 9 | . . . 1 . 2 . 6 Utility 13 | . . . 3 . 2 . 8 Weapon 8 | . . . 1 . 2 . 5 Highest Loss Streak 13 | . . . 3 1 3 . 13 To Critical Strikes . | . . . . . . . . Average Backups 19 | . 1 2 19 24 23 24 20 Power 2 | . . . 2 2 2 3 2 Propulsion 4 | . . . 5 6 5 4 2 Utility 7 | . 1 2 6 10 9 10 10 Weapon 4 | . . . 4 5 5 6 4 Tool/Special . | . . . . . . . . Unused Backups 21 | . . . 7 . 1 2 11 Power 4 | . . . . . . . 4 Propulsion 4 | . . . 4 . . . . Utility 11 | . . . 2 . 1 1 7 Weapon 2 | . . . 1 . . 1 . Tool/Special . | . . . . . . . . Average Slot Usage (%) 96 | . 92 100 96 100 98 97 81 Engine 5 | . 14 14 5 2 5 2 6 Core 4 | . . . 5 8 3 4 . Treads 29 | . 28 28 31 33 26 30 21 Device 8 | . 6 14 5 . 13 12 11 Storage 10 | . 14 14 11 11 9 7 7 Processor 6 | . . . 2 11 9 14 8 Protection 10 | . . . 12 11 12 7 10 Energy Gun 4 | . 14 14 5 . . 3 3 Ballistic Gun 10 | . 14 14 14 11 7 3 . Ballistic Cannon 1 | . . . . . 4 3 7 Launcher 3 | . . . 2 11 4 3 1 Peak Build Rating 44 | 6 7 7 25 23 33 42 44 Average Rating 23 | 4 6 7 18 22 30 39 34 On Entrance 17 | . 6 7 7 23 22 33 42 Avg Prop Armor Cover (%) . | . . . . . . . . Naked Turns . | . . . . . . . . Heaviest Build 117 | 11 47 47 101 94 107 106 117 Greatest Support 86 | 40 40 40 69 69 69 83 86 Greatest Overweight (x) 4 | . 1 1 2 1 2 1 4 Average Overweight (x) 1 | . . 1 1 1 1 1 1 Largest Inventory Capacity 25 | 8 20 20 25 25 25 25 25 Average Capacity 24 | 6 18 20 24 25 25 25 25 Most Carried 25 | . 2 3 25 25 25 25 25 Average Carried 19 | . 1 2 19 24 23 24 20 Final Capacity 25 | 8 20 20 25 25 25 25 25 Final Carried 25 | . 2 3 25 25 25 25 11 Class Distribution -------------------- 88% | Mutant 11% | Scavenger-Mutant Dominant Class ---------------- Mutant | -10/Materials Mutant | -10/Mines Mutant | -9/Materials Mutant | -9/Mines Mutant | -8/Materials Mutant | -7/Factory Mutant | -7/DSF Resources | -11 -10 -10 -9 -9 -8 -7 -7 ----------- Run | Yrd Mat Min Mat Min Mat Fac DSF Matter Collected 1913 | 189 111 16 761 174 327 142 193 Remotely . | . . . . . . . . Salvage Created 2235 | . 111 77 953 105 622 42 325 Parts 119 | . 5 4 47 6 35 3 19 Haulers Intercepted 3 | . . . 1 . 2 . . Recyclers Shooed 2 | . . . 1 . 1 . . Parts Field Recycled 20 | . . . . . . . 20 Retrieved Matter 44 | . . . . . . . 44 Parts Self-Destructed . | . . . . . . . . Prevented . | . . . . . . . . Parts Restored . | . . . . . . . . Kills | -11 -10 -10 -9 -9 -8 -7 -7 ------- Run | Yrd Mat Min Mat Min Mat Fac DSF Combat Hostiles Destroyed 56 | . 3 2 19 5 16 1 10 Guns 29 | . 3 2 19 1 3 . 1 Cannons 9 | . . . . . 5 1 3 AOE 18 | . . . . 4 8 . 6 Classes Destroyed 17 | . 1 . 3 3 7 1 2 Worker 2 | . . . 1 . 1 . . Builder 2 | . . . . . 2 . . Hauler 3 | . . . 1 . 2 . . Recycler 1 | . . . . . 1 . . Operator 1 | . . . . . 1 . . Swarmer 3 | . . . . . 3 . . Cutter 3 | . . . . . . . 3 Grunt 30 | . 3 2 13 2 7 . 3 Brawler 1 | . . . . 1 . . . Duelist 1 | . . . . . 1 . . Sentry 8 | . . . 6 . 2 . . Demolisher 1 | . . . . 1 . . . Specialist 2 | . . . . . . . 2 Hunter 3 | . . . . . 2 . 1 Programmer 1 | . . . . . . 1 . Heavy 2 | . . . . . 1 . 1 Assembled 1 | . . . . 1 . . . Best Kill Streak 6 | . 3 2 4 4 6 1 4 Combat Bots Only 4 | . 3 2 3 4 3 1 4 Max Kills in Single Turn 4 | . 1 1 1 2 4 1 2 Gunslinging . | . . . . . . . . Exploded 2 | . . . . 2 2 . 2 Melee . | . . . . . . . . Uniques/NPCs Destroyed . | . . . . . . . . Combat | -11 -10 -10 -9 -9 -8 -7 -7 -------- Run | Yrd Mat Min Mat Min Mat Fac DSF Hostile Shots Fired 517 | . 20 15 124 11 87 2 258 Missed 139 | . 5 4 32 3 21 . 74 Hits 378 | . 15 11 92 8 66 2 184 Melee 6 | . . . . . . . 6 Projectile 372 | . 15 11 92 8 66 2 178 AOE 6 | . . . . 3 . . 3 Critical Strikes 11 | . . . . . 4 . 7 Damage Taken 7070 | . 183 143 1376 221 1313 29 3805 Core 1133 | . 61 . 178 39 145 . 710 Absorbed by Shields 273 | . . . 108 . 112 . 53 Regen/Repaired (Parts) 136 | . . . 125 . . 11 . Core Remaining (%) 73 | 100 . 75 . 45 73 . . Volleys Fired 213 | . 12 7 94 13 57 1 29 Largest 2 | . 2 2 2 2 2 2 2 Hottest 100 | . 70 70 100 53 56 100 100 Shots Fired 358 | . 24 14 166 17 93 2 42 Gun 261 | . 24 14 157 13 45 1 7 Cannon 67 | . . . . . 39 1 27 Launcher 25 | . . . 4 4 9 . 8 Special 5 | . . . 5 . . . . Kinetic 260 | . 12 7 116 13 84 1 27 Thermal 73 | . 12 7 46 . . 1 7 Explosive 25 | . . . 4 4 9 . 8 Electromagnetic . | . . . . . . . . Robot Hit Streak 14 | . 8 11 14 14 8 7 8 Robot Miss Streak 4 | . 1 1 3 1 3 . 4 Penetration Max . | . . . . . . . . Secondary Targets 2 | . . 1 1 . . . . Max Gunslinging Chain 1 | . . 1 1 . . . . Shots Hit Robots 231 | . 17 12 99 11 63 2 27 Core Hits 131 | . 7 5 39 8 43 1 28 Critical Kills . | . . . . . . . . Critical Parts Destroyed 1 | . . . . . 1 . . Critical Strikes 10 | . 1 1 4 . 4 . . Burn 6 | . 1 1 4 . . . . Destroy 1 | . . . . . 1 . . Blast 3 | . . . . . 3 . . Melee Attacks 1 | . . . 1 . . . . Impact . | . . . . . . . . Slashing 1 | . . . 1 . . . . Piercing . | . . . . . . . . Sneak Attacks . | . . . . . . . . Combat Hostiles . | . . . . . . . . Follow-up Attacks . | . . . . . . . . Damage Inflicted 5325 | . 185 128 1420 355 1792 53 1392 Guns 2280 | . 185 128 1356 159 362 22 68 Cannons 1133 | . . . . . 641 31 461 Explosions 1841 | . . . . 189 789 . 863 Melee 33 | . . . 33 . . . . Ramming 38 | . . . 31 7 . . . Kinetic 2783 | . 46 40 1043 159 1003 31 461 Thermal 630 | . 139 88 313 . . 22 68 Explosive 1841 | . . . . 189 789 . 863 Electromagnetic . | . . . . . . . . Impact . | . . . . . . . . Slashing 33 | . . . 33 . . . . Piercing . | . . . . . . . . Highest Corruption 5 | . 1 1 5 5 . . 2 Average Corruption 4 | . 1 1 4 5 . . 2 Corruption Purged . | . . . . . . . . Corruption Blocked . | . . . . . . . . Effects 65 | . 2 1 45 13 . . 4 Message Errors 17 | . 1 1 12 2 . . 1 Matter Fused 13 | . 1 . 6 6 . . . Heat Flow Errors 5 | . . . 3 1 . . 1 Energy Discharges 9 | . . . 7 1 . . 1 Parts Rejected 3 | . . . 2 . . . 1 Parts Fused 1 | . . . 1 . . . . Data Loss (minor) 8 | . . . 6 2 . . . Data Loss (major) 5 | . . . 4 1 . . . Misfires 1 | . . . 1 . . . . Alerts 1 | . . . 1 . . . . Weapon Failures 2 | . . . 2 . . . . Overload Shots . | . . . . . . . . Overflow Damage 21 | . . . . . . . 21 Projectiles . | . . . . . . . . Explosions 21 | . . . . . . . 21 Melee . | . . . . . . . . Knockbacks 8 | . . . . . 5 . 3 Impact . | . . . . . . . . Kinetic 8 | . . . . . 5 . 3 Secondary . | . . . . . . . . Self-Inflicted Damage 302 | . . . 52 . 137 . 113 Shots 8 | . . . 1 . 4 . 3 Rammed 4 | . . . 2 1 . . 1 Targets Rammed 4 | . . . 2 1 . . 1 Kicked . | . . . . . . . . Crushed . | . . . . . . . . Highest Temperature 303 | . 246 188 303 179 20 21 148 Average Temperature 97 | . 122 94 96 95 6 14 96 Received Heat Transfer 2105 | . 102 78 496 30 295 . 1104 Effects 2 | . . . 2 . . . . Energy Bleed 1 | . . . 1 . . . . Interference 1 | . . . 1 . . . . Siege Activations . | . . . . . . . . Martial Activations . | . . . . . . . . Shielding Activations . | . . . . . . . . Robots Disrupted . | . . . . . . . . Combat Hostiles . | . . . . . . . . Robots Corrupted . | . . . . . . . . Combat Hostiles . | . . . . . . . . Parts Fried . | . . . . . . . . Impact Corruptions . | . . . . . . . . Robots Melted . | . . . . . . . . Combat Hostiles . | . . . . . . . . Parts Melted 3 | . 1 2 . . . . . Heat Transferred 2146 | . 481 333 1147 . . 37 148 Parts Sabotaged . | . . . . . . . . Parts Stolen . | . . . . . . . . Parts Stripped . | . . . . . . . . Power Chain Reactions . | . . . . . . . . Alert | -11 -10 -10 -9 -9 -8 -7 -7 ------- Run | Yrd Mat Min Mat Min Mat Fac DSF Maximum Alert Level 1 | . . . 1 . 1 . . Low Security (%) 79 | 100 100 100 57 100 85 100 100 Level 1 20 | . . . 42 . 14 . . Level 2 . | . . . . . . . . Level 3 . | . . . . . . . . Level 4 . | . . . . . . . . Level 5 . | . . . . . . . . High Security . | . . . . . . . . Max Security . | . . . . . . . . Sterilizations 1 | . . . . . . . 1 Peak Influence 294 | . 95 80 294 99 242 79 182 Initial 99 | . . 30 11 99 20 79 . Average 91 | . 10 51 140 40 111 11 110 Influence Increases 2099 | . 105 50 839 116 576 71 342 Destroy 0b10 Robot/C 1220 | . 60 40 500 80 320 20 200 Destroy 0b10 Robot/NC 55 | . . . 10 . 35 . 10 Destroy Leader 316 | . . 10 152 10 94 10 40 Allied During Kill 10 | . . . 10 . . . . Successful Hack 90 | . . . 28 . 36 26 . Disable Machine 60 | . . . 15 . 45 . . Destroy Structure 138 | . . . 34 26 46 . 32 Partial Spotted 30 | . . . 15 . . 15 . Lose Combat Pursuer 180 | . 45 . 75 . . . 60 Influence Decreases 1957 | . 28 97 615 318 454 245 200 Entered New Map 348 | . . 47 19 155 32 95 . Time Decay 1321 | . 28 50 575 156 362 150 . Lost Part 288 | . . . 21 7 60 . 200 Squads Dispatched 11 | . . . 3 . 2 2 4 Investigation 1 | . . . 1 . . . . Extermination 2 | . . . . . . 2 . Reinforcement 8 | . . . 2 . 2 . 4 Assault . | . . . . . . . . Garrison . | . . . . . . . . Intercept . | . . . . . . . . Searches Triggered . | . . . . . . . . Construction Impeded . | . . . . . . . . Haulers Reinforced . | . . . . . . . . Active Scanning Responses . | . . . . . . . . Cargo Convoy Interrupts . | . . . . . . . . Stealth | -11 -10 -10 -9 -9 -8 -7 -7 --------- Run | Yrd Mat Min Mat Min Mat Fac DSF Distress Signals 7 | . 1 . 5 . 1 . . Communications Jammed . | . . . . . . . . Distress Signals . | . . . . . . . . Times Spotted 106 | . 9 2 45 11 20 1 18 Peak Tracking Total 6 | . 6 2 6 6 3 1 6 Tactical Retreats 7 | . 1 . 2 . . . 4 Traps | -11 -10 -10 -9 -9 -8 -7 -7 ------- Run | Yrd Mat Min Mat Min Mat Fac DSF Traps Triggered 2 | . 1 . 1 . . . . Indirectly . | . . . . . . . . Trap Hack Attempts . | . . . . . . . . Triggered . | . . . . . . . . Disarmed . | . . . . . . . . Reprogrammed . | . . . . . . . . Reused . | . . . . . . . . Traps Extracted . | . . . . . . . . Installed . | . . . . . . . . Triggered . | . . . . . . . . Machines | -11 -10 -10 -9 -9 -8 -7 -7 ---------- Run | Yrd Mat Min Mat Min Mat Fac DSF Machines Disabled 4 | . . . 1 . 3 . . Max in Single Turn 1 | . . . 1 . 1 . . Machines Repaired . | . . . . . . . . Machines Dismantled . | . . . . . . . . Machines Sabotaged . | . . . . . . . . Overloaded Fab Kills . | . . . . . . . . Hacking | -11 -10 -10 -9 -9 -8 -7 -7 --------- Run | Yrd Mat Min Mat Min Mat Fac DSF Machines Accessed 14 | . . . 6 . 4 4 . Terminals 9 | . . . 3 . 4 2 . Fabricators . | . . . . . . . . Repair Stations 2 | . . . 1 . . 1 . Recycling Units . | . . . . . . . . Scanalyzers 3 | . . . 2 . . 1 . Garrison Access . | . . . . . . . . Total Hacks 37 | . . . 18 . 12 7 . Successful 23 | . . . 13 . 6 4 . Failed 13 | . . . 4 . 6 3 . Catastrophic 4 | . . . . . 3 1 . Database Lockouts 1 | . . . 1 . . . . Manual 12 | . . . 3 . 9 . . Terminals 18 | . . . 4 . 12 2 . Fabricators . | . . . . . . . . Repair Stations 6 | . . . 2 . . 4 . Recycling Units . | . . . . . . . . Scanalyzers 13 | . . . 12 . . 1 . Garrison Access . | . . . . . . . . Terminal Hacks 10 | . . . 3 . 6 1 . Open DSF 1 | . . . . . . 1 . Branch Access Points 2 | . . . 1 . 1 . . Scanalyzer Index 2 | . . . 1 . 1 . . Registered Components 4 | . . . 1 . 3 . . Zone Layout 1 | . . . . . 1 . . Fabricator Hacks . | . . . . . . . . Repair Station Hacks 5 | . . . 2 . . 3 . Scan Component 3 | . . . 1 . . 2 . Repair 2 | . . . 1 . . 1 . Recycling Unit Hacks . | . . . . . . . . Scanalyzer 8 | . . . 8 . . . . Insert Component 4 | . . . 4 . . . . Analyze 3 | . . . 3 . . . . Retrieve Study 1 | . . . 1 . . . . Garrison Access Hacks . | . . . . . . . . Unauthorized Hacks . | . . . . . . . . Terminals . | . . . . . . . . Fabricators . | . . . . . . . . Repair Stations . | . . . . . . . . Recycling Units . | . . . . . . . . Scanalyzers . | . . . . . . . . Garrison Access . | . . . . . . . . Data Cores Recovered . | . . . . . . . . Used . | . . . . . . . . Hacking Detections 9 | . . . 3 . 4 2 . Full Trace Events . | . . . . . . . . Feedback Events . | . . . . . . . . Feedback Blocked . | . . . . . . . . Robot Schematics Acquired . | . . . . . . . . Robots Built . | . . . . . . . . Authchips . | . . . . . . . . Time . | . . . . . . . . Total Robot Build Rating . | . . . . . . . . Part Schematics Acquired 3 | . . . 3 . . . . Parts Built . | . . . . . . . . Authchips . | . . . . . . . . Time . | . . . . . . . . Total Part Build Rating . | . . . . . . . . Part Studies Acquired 1 | . . . 1 . . . . Parts Repaired 2 | . . . 1 . . 1 . Time 51 | . . . 32 . . 19 . Parts Recycled . | . . . . . . . . Recycled Matter . | . . . . . . . . Retrieved Matter . | . . . . . . . . Retrieved Components . | . . . . . . . . Parts Scanalyzed 3 | . . . 3 . . . . Part Schematics Acquired 3 | . . . 3 . . . . Parts Damaged . | . . . . . . . . Bothacking | -11 -10 -10 -9 -9 -8 -7 -7 ------------ Run | Yrd Mat Min Mat Min Mat Fac DSF Used RIF Installer . | . . . . . . . . Robots Hacked . | . . . . . . . . Non-combat . | . . . . . . . . Combat . | . . . . . . . . Robot Hacks Applied . | . . . . . . . . Relay Couplers Released . | . . . . . . . . Fabnet Peak Effective % . | . . . . . . . . Robots Rewired . | . . . . . . . . Allies Hacked . | . . . . . . . . Hacks Repelled . | . . . . . . . . Allies | -11 -10 -10 -9 -9 -8 -7 -7 -------- Run | Yrd Mat Min Mat Min Mat Fac DSF Total Allies 1 | . . 1 . . . . . Largest Group 1 | . . 1 1 . . . . Highest-Rated Group 31 | . . 31 31 . . . . Highest-Rated Ally 31 | . . 31 31 . . . . Total Orders . | . . . . . . . . Ally Attacks 16 | . . . 16 . . . . Total Damage 228 | . . . 228 . . . . Kills 6 | . . . 6 . . . . Allies Corrupted . | . . . . . . . . Allies Melted . | . . . . . . . . Intel | -11 -10 -10 -9 -9 -8 -7 -7 ------- Run | Yrd Mat Min Mat Min Mat Fac DSF Active Infowar (turns) 847 | . 206 100 541 . . . . Seismic 847 | . 206 100 541 . . . . Robot Analysis Total . | . . . . . . . . Derelict Logs Recovered . | . . . . . . . . Drone Launches . | . . . . . . . . Drone Recoveries . | . . . . . . . . Exploration | -11 -10 -10 -9 -9 -8 -7 -7 ------------- Run | Yrd Mat Min Mat Min Mat Fac DSF Turns Passed 5482 | 63 417 100 2350 493 834 884 341 Spaces Moved 2067 | 36 168 34 889 226 292 323 99 Core 2 | 2 . . . . . . . Treads 2065 | 34 168 34 889 226 292 323 99 Legs . | . . . . . . . . Wheels . | . . . . . . . . Hover . | . . . . . . . . Flight . | . . . . . . . . Fastest Speed 50 | 50 160 240 160 200 200 237 200 Average Speed 219 | 153 214 240 216 200 222 237 241 Slowest Speed 320 | 160 240 240 320 200 240 237 320 Overloaded Moves . | . . . . . . . . Propulsion Burnouts . | . . . . . . . . Robots Hopped . | . . . . . . . . Potential Cave-ins 4 | . . . 4 . . . . Cave-ins Triggered 1 | . . . 1 . . . . Exploration Rate (%) 30 | 4 35 14 53 54 29 10 48 Regions Visited 7 Branch Regions 2 Pre-discovered Areas . | . . . . . . . . Known Exits Taken 4 | . . . 1 1 1 1 . Unknown Exits Taken 3 | 1 1 1 . . . . . Scrap Searched 1 | . . . . 1 . . . Spaces Dug 46 | . . . 33 13 . . . Terrain Destroyed 174 | . . . 44 35 59 . 36 Melee . | . . . . . . . . Projectile 6 | . . . 5 . . . 1 AOE 167 | . . . 38 35 59 . 35 Terrain Rammed 1 | . . . 1 . . . . Walls Destroyed 1 | . . . 1 . . . . Machines Disabled . | . . . . . . . . Actions | -11 -10 -10 -9 -9 -8 -7 -7 --------- Run | Yrd Mat Min Mat Min Mat Fac DSF Total 2664 | 41 203 41 1138 250 387 444 160 Wait 185 | . 19 . 63 7 1 91 4 Move 2059 | 35 167 33 887 225 291 322 99 Hop . | . . . . . . . . Pick Up 65 | . . 1 39 2 11 10 2 Fast Attach 18 | 6 3 . 7 . . 2 . Attach 32 | . . . 4 1 10 3 14 Detach 5 | . 2 . 1 . 1 1 . Swap 41 | . . . 19 . 10 4 8 Drop 39 | . . . 19 1 6 10 3 Fire 213 | . 12 7 94 13 57 1 29 Melee 1 | . . . 1 . . . . Ram 1 | . . . 1 . . . . Kick . | . . . . . . . . Crush 4 | . . . 2 1 . . 1 Escape Stasis 1 | . . . 1 . . . . Rewire . | . . . . . . . . Trap . | . . . . . . . . Miscellaneous . | . . . . . . . . Route ------- -11/Scrapyard -10/Materials (discovered 2 exits: [*Min x2]) -10/Mines -9/Materials (discovered 3 exits: *Mat / *Min / *Sto) -9/Mines -8/Materials -7/Factory (discovered 2 exits: *Low / DSF) -7/DSF History --------- Turn | Location | Event 34 | -11/Scrapyard | Discovered new exit (range 16) 64 | -11/Scrapyard | Entered Materials 137 | -10/Materials | Discovered new exit (range 15) 315 | -10/Materials | Build established: Mutant 455 | -10/Materials | Discovered new exit (range 12) 481 | -10/Materials | Entered Mines 556 | -10/Mines | Discovered new exit (range 5) 559 | -10/Mines | Received a Mining Laser from a helpful Derelict 581 | -10/Mines | Entered Materials 581 | -9/Materials | Accompanied by 1 ally 581 | -9/Materials | Evolved 2 slots: Propulsion x1, Utility x1 871 | -9/Materials | Discovered new exit (range 4) 1117 | -9/Materials | Crushed by falling debris 1153 | -9/Materials | Lost 3 parts (1n1u1w) 1282 | -9/Materials | Central database locked down 1290 | -9/Materials | Discovered new exit (range 9) 1708 | -9/Materials | Build established: Scavenger-Mutant 2046 | -9/Materials | Build established: Mutant 2352 | -9/Materials | Repaired Imp. Treads+ 2526 | -9/Materials | Identified exit to Storage 2742 | -9/Materials | Identified exit to Materials 2835 | -9/Materials | Identified exit to Mines 2931 | -9/Materials | Entered Mines 2997 | -9/Mines | Received a Rocket Launcher from a helpful Derelict 3001 | -9/Mines | Met a Derelict bent on vengeance 3123 | -9/Mines | Assembled infested the area 3128 | -9/Mines | Assisted by a Guerilla fighting off Assembled 3295 | -9/Mines | Core integrity fell below 50% 3414 | -9/Mines | Discovered exit to Materials (range 5) 3424 | -9/Mines | Entered Materials 3424 | -8/Materials | Evolved 2 slots: Utility x2 3586 | -8/Materials | Lost 3 parts (2n1u) 3604 | -8/Materials | Found Prototype Device 4195 | -8/Materials | Discovered new exit (range 16) 4256 | -8/Materials | Identified exit to Factory 4258 | -8/Materials | Entered Factory 4258 | -7/Factory | Evolved 2 slots: Propulsion x1, Utility x1 4668 | -7/Factory | Repaired Hardlight Generator 4761 | -7/Factory | Discovered new exit (range 12) 4901 | -7/Factory | Identified exit to Lower Caves 5138 | -7/Factory | Identified exit to DSF 5142 | -7/Factory | Entered DSF 5194 | -7/DSF | Additional patrols routed to DSF 5397 | -7/DSF | Core integrity fell below 50% 5431 | -7/DSF | Sterilization system engaged 5433 | -7/DSF | Lost 13 parts (1p5n3u4w) 5444 | -7/DSF | Core integrity fell below 20% 5451 | -7/DSF | Ambient heat levels rising (+10) 5466 | -7/DSF | Ambient heat levels rising (+10) 5481 | -7/DSF | Ambient heat levels rising (+10) 5483 | -7/DSF | Destroyed by G-47 Trooper with Particle Gun Last Messages --------------- 05423_ Acquired 31 matter. [Achievement: Hydra] 05428_ The unstable cave ceiling collapses. 05431_ ALERT: Persistent threat exposed, engaging DSF rapid sterilization system. 05435_ Acquired 6 matter. 05438_ Acquired 29 matter. 05439_ Imp. Light Armor Plating destroyed. 05447_ G-47 Trooper destroyed. 05450_ Acquired 2 matter. 05451_ ALERT: Ambient heat levels +10. 05457_ Acquired 3 matter. 05466_ ALERT: Ambient heat levels +10. 05473_ System corrupted: Heat flow error (+150). 05474_ Imp. Light Armor Plating destroyed. 05476_ Med. Armor Plating destroyed. 05476_ Slammed into G-47 Trooper. 05481_ ALERT: Ambient heat levels +10. 05482_ Rocket Launcher destroyed. 05482_ Imp. Deuterium Engine destroyed. Map ----- +----------------------------------------------------+ | | | | | | | | | | | | | ???????????????????????????????????????????????? | | ???????????????????????????????????????????????? | | ???????????????????????????????????????????????? | | ???????????????????##???????????????##?????????? | | ??????????????????## ######????????#""?????????? | | ????????????????### # # #????????#"#?????????? | | ????????????????# ## ;;#"#???????##"####??????? | | ???????????#??#####! #########"""""#??????? | | ????????""##&&#&&& ! # **# ##"""""#??????? | | ??????" * ""##"#???? | | ??????" """""#???? | | ????????? ##&&#&&&## #; #**## ""###????? | | ???????????#??#&&?# # ; #**### ###??????? | | ??????????????##??# %########?# #????????? | | ??????????????????# %% = ####?????* #???????? | | ??????????????????# [ ###???* #???????? | | ??????????????????### [ ! ;; [[#??## ##???????? | | ??????????????????#!! * Hg% [[#??? *????????? | | ??????????????????#!! g ###??? *????????? | | ??????????????????#! @####????? *????????? | | ??????????????????## [ #???????# ##???????? | | ???????????????????#!% # ]]??????# /????????? | | ??????????????????# % #]]]?????# /????????? | | ????????????????? !% %= ????? !????????? | | ??????????????? = = % ??? !????????? | | ????????????? ! ?? !????????? | | ???????????? #!!!##a ##!!!# #????????????? | | ??????????????#!!!?# #?!!!# #????????????? | | ??????????????###??## ?##?#?###????????????? | | ????????????????????! ?????????????????????? | | ????????????????????! !?????????????????????? | | ???????????????????!! !!?????????????????????? | | ???????????????????## #??????????????????????? | | ????????????????????? ?????????????????????????? | | ???????????????????????????????????????????????? | | ???????????????????????????????????????????????? | | ???????????????????????????????????????????????? | | ???????????????????????????????????????????????? | | ???????????????????????????????????????????????? | | ???????????????????????????????????????????????? | | ???????????????????????????????????????????????? | | ???????????????????????????????????????????????? | | ???????????????????????????????????????????????? | | ???????????????????????????????????????????????? | +----------------------------------------------------+ Best States ------------- Heat Dissipation 48 Energy Generation 16 Energy Capacity 290 Matter Stores 300 Matter Capacity 300 Sight Range 16 Terrain Scan Density 10 Armor Coverage 525 Evasion (%) 40 Targeting Accuracy 6 Recoil Reduction 4 Item Schematics ----------------- Med. Armor Plating | -9/Materials | Scanalyzed Imp. Treads | -9/Materials | Scanalyzed Imp. Light Armor Plating | -9/Materials | Scanalyzed Robot Schematics ------------------ None Fabricated ------------ Nothing Repaired ---------- Imp. Treads | 19% | -9/Materials Hardlight Generator | 63% | -7/Factory Studied --------- Imp. Treads | -9/Materials | Hacked Alien Tech Used ----------------- None Achievements -------------- Hydra Challenges ------------ None Game ------ Seed ThrowingDerelictDoublenader Manual? 0 Play Time 00:56:43 Cumulative 28.3 hours Start 2025.10.26 @ 12:49:17 End 2025.10.27 @ 01:01:34 Sessions 3 Manual Loads 0 Difficulty Rogue Special Mode None Game No. 42 Rogue 42 Adventurer 0 Explorer 0 Win Type - Total 0 Types 0/0/0/0/0/0/0/0/0/0 Lore% 10 Gallery% 26 Achievement% 16 Wizard Run 0 Options --------- Layout 0 ASCII 0 Keyboard 1 Movement Arrows Keybinds 0 Fullscreen 1 Font 24/Smallcaps Map View 76x50 Zoom Use 0% Tactical HUD 1 Map Filters NONE Filters NONE Steam 1 RUN: 63a0c464-19f7-40c1-90c6-707dafe15805